[Event "Late-Titled-Tuesday-Blitz-March-19-2024"]
[Site "Chess.com"]
[Date "2024.03.19"]
[Round "5"]
[White "Revan_2002"]
[Black "Heliosis11"]
[Result "0-1"]
[WhiteElo "2558"]
[BlackElo "2269"]
[TimeControl "180+1"]
[EndTime "14:54:25 PDT"]
[Termination "Heliosis11 won on time"]

1. c4 {[%clk 0:02:59.8]} 1... e6 {[%clk 0:02:58.5]} 2. Nc3 {[%clk 0:03:00.2]}
2... c5 {[%clk 0:02:53.5]} 3. Nf3 {[%clk 0:02:59]} 3... Nf6 {[%clk 0:02:52.2]}
4. d4 {[%clk 0:02:54.8]} 4... cxd4 {[%clk 0:02:52.3]} 5. Nxd4 {[%clk 0:02:55.7]}
5... Bb4 {[%clk 0:02:50.2]} 6. g3 {[%clk 0:02:54.3]} 6... Qc7 {[%clk 0:02:48.2]}
7. Bg2 {[%clk 0:02:49]} 7... Qxc4 {[%clk 0:02:43.1]} 8. O-O {[%clk 0:02:48.6]}
8... Nc6 {[%clk 0:02:40.7]} 9. Nc2 {[%clk 0:02:26.4]} 9... Be7 {[%clk
0:02:34.2]} 10. Ne3 {[%clk 0:02:09.1]} 10... Qa6 {[%clk 0:02:32.3]} 11. b3
{[%clk 0:02:07.6]} 11... d5 {[%clk 0:02:31.3]} 12. a4 {[%clk 0:02:00.9]} 12...
Bd7 {[%clk 0:02:27]} 13. Nb5 {[%clk 0:02:00.4]} 13... Rc8 {[%clk 0:02:24.1]} 14.
Bb2 {[%clk 0:01:59.4]} 14... O-O {[%clk 0:02:19.9]} 15. Rc1 {[%clk 0:01:55.6]}
15... Nb4 {[%clk 0:02:10.8]} 16. Nc7 {[%clk 0:01:13.1]} 16... Qa5 {[%clk
0:02:06.1]} 17. Be5 {[%clk 0:01:05.6]} 17... Nc6 {[%clk 0:02:01.4]} 18. Bxf6
{[%clk 0:01:06]} 18... Bxf6 {[%clk 0:01:59.3]} 19. Nb5 {[%clk 0:01:06.7]} 19...
Be7 {[%clk 0:01:56.2]} 20. Nc4 {[%clk 0:00:48.6]} 20... Qd8 {[%clk 0:01:47]} 21.
Ncd6 {[%clk 0:00:46.2]} 21... Rb8 {[%clk 0:01:40.8]} 22. e4 {[%clk 0:00:45.9]}
22... a6 {[%clk 0:01:39.3]} 23. exd5 {[%clk 0:00:45.7]} 23... exd5 {[%clk
0:01:40.2]} 24. Bxd5 {[%clk 0:00:30.3]} 24... axb5 {[%clk 0:01:37.9]} 25. Nxf7
{[%clk 0:00:29.3]} 25... Rxf7 {[%clk 0:01:33.2]} 26. Qh5 {[%clk 0:00:29.7]}
26... Be8 {[%clk 0:01:28.4]} 27. Rfd1 {[%clk 0:00:29.2]} 27... Qb6 {[%clk
0:01:23]} 28. axb5 {[%clk 0:00:17.9]} 28... Nb4 {[%clk 0:01:19.1]} 29. Bxf7+
{[%clk 0:00:09.2]} 29... Bxf7 {[%clk 0:01:18.7]} 30. Qe5 {[%clk 0:00:08.6]}
30... Re8 {[%clk 0:01:15]} 31. Qc7 {[%clk 0:00:03]} 31... Qxb5 {[%clk
0:01:00.5]} 32. Re1 {[%clk 0:00:02.9]} 32... Nd3 {[%clk 0:00:56.2]} 0-1

[Event "Late-Titled-Tuesday-Blitz-March-19-2024"]
[Site "Chess.com"]
[Date "2024.03.19"]
[Round "5"]
[White "VitaliyBernadskiy"]
[Black "manitodeplomo"]
[Result "1-0"]
[WhiteElo "2886"]
[BlackElo "2660"]
[TimeControl "180+1"]
[EndTime "14:54:26 PDT"]
[Termination "VitaliyBernadskiy won by checkmate"]

1. d4 {[%clk 0:03:00.9]} 1... g6 {[%clk 0:02:57.4]} 2. e4 {[%clk 0:03:00.7]}
2... Bg7 {[%clk 0:02:57.4]} 3. Be3 {[%clk 0:03:01.4]} 3... c5 {[%clk 0:02:55.3]}
4. c3 {[%clk 0:03:00.9]} 4... cxd4 {[%clk 0:02:52.8]} 5. cxd4 {[%clk 0:03:01]}
5... d5 {[%clk 0:02:53.2]} 6. e5 {[%clk 0:02:54.5]} 6... Nc6 {[%clk 0:02:51.7]}
7. Nc3 {[%clk 0:02:54.1]} 7... Nh6 {[%clk 0:02:51.4]} 8. Nf3 {[%clk 0:02:49.5]}
8... O-O {[%clk 0:02:49.7]} 9. Qd2 {[%clk 0:02:44.8]} 9... Nf5 {[%clk
0:02:46.9]} 10. Bf4 {[%clk 0:02:45.2]} 10... f6 {[%clk 0:02:46.4]} 11. exf6
{[%clk 0:02:38.5]} 11... Bxf6 {[%clk 0:02:40.8]} 12. Ne2 {[%clk 0:02:29]} 12...
Qb6 {[%clk 0:02:34.5]} 13. Rd1 {[%clk 0:02:22.9]} 13... Bd7 {[%clk 0:02:17.7]}
14. Ne5 {[%clk 0:02:10.8]} 14... Bxe5 {[%clk 0:01:55.6]} 15. dxe5 {[%clk
0:02:11.7]} 15... e6 {[%clk 0:01:55.2]} 16. Ng3 {[%clk 0:02:10]} 16... Rac8
{[%clk 0:01:46.8]} 17. Bd3 {[%clk 0:02:08.5]} 17... Nh4 {[%clk 0:00:54.8]} 18.
O-O {[%clk 0:02:07.8]} 18... Nd4 {[%clk 0:00:46.3]} 19. Kh1 {[%clk 0:01:57.9]}
19... Ndf5 {[%clk 0:00:34.4]} 20. Bg5 {[%clk 0:01:53]} 20... Bb5 {[%clk
0:00:31.7]} 21. Bxb5 {[%clk 0:01:47.1]} 21... Qxb5 {[%clk 0:00:32.6]} 22. Bf6
{[%clk 0:01:46.9]} 22... Qc4 {[%clk 0:00:20.6]} 23. b3 {[%clk 0:01:44.8]} 23...
Qg4 {[%clk 0:00:19.6]} 24. Qd3 {[%clk 0:01:30.4]} 24... Rf7 {[%clk 0:00:13.3]}
25. Rc1 {[%clk 0:01:26.9]} 25... Rfc7 {[%clk 0:00:13.1]} 26. Rxc7 {[%clk
0:01:26.3]} 26... Rxc7 {[%clk 0:00:14]} 27. Qb5 {[%clk 0:01:26.5]} 27... Ng7
{[%clk 0:00:03.9]} 28. Bd8 {[%clk 0:01:16.8]} 28... Rf7 {[%clk 0:00:03.4]} 29.
Bf6 {[%clk 0:01:08.5]} 29... Nhf5 {[%clk 0:00:03.5]} 30. Qc5 {[%clk 0:01:05.7]}
30... h5 {[%clk 0:00:02.4]} 31. Nxf5 {[%clk 0:00:56.7]} 31... Nxf5 {[%clk
0:00:02.3]} 32. Qc8+ {[%clk 0:00:56.3]} 32... Kh7 {[%clk 0:00:02]} 33. Qh8#
{[%clk 0:00:56.1]} 1-0

[Event "Late-Titled-Tuesday-Blitz-March-19-2024"]
[Site "Chess.com"]
[Date "2024.03.19"]
[Round "5"]
[White "Boundless_Strike"]
[Black "tolimachess"]
[Result "1-0"]
[WhiteElo "2632"]
[BlackElo "2462"]
[TimeControl "180+1"]
[EndTime "14:54:27 PDT"]
[Termination "Boundless_Strike won on time"]

1. d4 {[%clk 0:02:58]} 1... c5 {[%clk 0:02:59.2]} 2. e4 {[%clk 0:02:55.5]} 2...
cxd4 {[%clk 0:03:00.1]} 3. c3 {[%clk 0:02:55.8]} 3... dxc3 {[%clk 0:02:58]} 4.
Nxc3 {[%clk 0:02:56.7]} 4... Nc6 {[%clk 0:02:58.3]} 5. Nf3 {[%clk 0:02:57.3]}
5... e6 {[%clk 0:02:58.8]} 6. Bc4 {[%clk 0:02:57.1]} 6... a6 {[%clk 0:02:59.4]}
7. O-O {[%clk 0:02:56.7]} 7... b5 {[%clk 0:02:59.7]} 8. Bb3 {[%clk 0:02:57.2]}
8... Na5 {[%clk 0:03:00.4]} 9. Bd5 {[%clk 0:02:56.5]} 9... exd5 {[%clk
0:02:42.4]} 10. exd5 {[%clk 0:02:57.4]} 10... d6 {[%clk 0:02:26.7]} 11. Re1+
{[%clk 0:02:53.7]} 11... Be7 {[%clk 0:02:27.1]} 12. Bg5 {[%clk 0:02:52.4]} 12...
Kf8 {[%clk 0:02:27.2]} 13. Qc1 {[%clk 0:02:49.2]} 13... Bxg5 {[%clk 0:02:07.2]}
14. Nxg5 {[%clk 0:02:42.8]} 14... h6 {[%clk 0:02:02.9]} 15. Nge4 {[%clk
0:02:36.9]} 15... Bf5 {[%clk 0:01:58.1]} 16. Qf4 {[%clk 0:02:35.5]} 16... Bxe4
{[%clk 0:01:58.3]} 17. Nxe4 {[%clk 0:02:35.5]} 17... Nb7 {[%clk 0:01:50.6]} 18.
Rac1 {[%clk 0:02:32.8]} 18... Nf6 {[%clk 0:01:50]} 19. Ng3 {[%clk 0:02:27.4]}
19... g6 {[%clk 0:01:35.5]} 20. b4 {[%clk 0:01:56]} 20... Kg7 {[%clk 0:01:32.3]}
21. Qd4 {[%clk 0:01:55.8]} 21... Rc8 {[%clk 0:01:13.9]} 22. Rc6 {[%clk
0:01:45.1]} 22... Qd7 {[%clk 0:00:56.4]} 23. Rec1 {[%clk 0:01:22.1]} 23... Rce8
{[%clk 0:00:09.6]} 24. Rc7 {[%clk 0:01:18.6]} 24... Qg4 {[%clk 0:00:10.1]} 25.
Qxg4 {[%clk 0:01:17.7]} 25... Nxg4 {[%clk 0:00:11]} 26. Rxb7 {[%clk 0:01:18.1]}
26... Re5 {[%clk 0:00:11.1]} 27. h3 {[%clk 0:01:18.3]} 27... Nf6 {[%clk
0:00:11.2]} 28. Rcc7 {[%clk 0:01:19]} 28... Rf8 {[%clk 0:00:10.4]} 29. Ra7
{[%clk 0:01:17.7]} 29... Nxd5 {[%clk 0:00:10.1]} 30. Rd7 {[%clk 0:01:17.5]}
30... Nxb4 {[%clk 0:00:10.5]} 31. Rxd6 {[%clk 0:01:18.1]} 31... Re1+ {[%clk
0:00:10.4]} 32. Kh2 {[%clk 0:01:18.2]} 32... Ra1 {[%clk 0:00:10.6]} 33. f4
{[%clk 0:01:14.8]} 33... Rxa2 {[%clk 0:00:06.5]} 34. f5 {[%clk 0:01:15.4]} 34...
Re8 {[%clk 0:00:03.7]} 35. fxg6 {[%clk 0:01:12]} 35... Rf2 {[%clk 0:00:03.6]}
36. Nh5+ {[%clk 0:01:11.7]} 36... Kg8 {[%clk 0:00:02.5]} 37. g7 {[%clk
0:01:08.3]} 1-0

[Event "Late-Titled-Tuesday-Blitz-March-19-2024"]
[Site "Chess.com"]
[Date "2024.03.19"]
[Round "5"]
[White "PNEPaul"]
[Black "Horokoskii"]
[Result "0-1"]
[WhiteElo "1989"]
[BlackElo "2179"]
[TimeControl "180+1"]
[EndTime "14:54:27 PDT"]
[Termination "Horokoskii won on time"]

1. e4 {[%clk 0:03:00.9]} 1... c5 {[%clk 0:02:40.2]} 2. Nf3 {[%clk 0:03:00.6]}
2... d6 {[%clk 0:02:39.1]} 3. d4 {[%clk 0:03:00.7]} 3... cxd4 {[%clk 0:02:39.3]}
4. c3 {[%clk 0:03:00.9]} 4... d3 {[%clk 0:02:38.4]} 5. Bxd3 {[%clk 0:02:59.9]}
5... g6 {[%clk 0:02:38.2]} 6. Bc4 {[%clk 0:02:59.4]} 6... Bg7 {[%clk 0:02:36.7]}
7. Bg5 {[%clk 0:02:58.8]} 7... Nf6 {[%clk 0:02:36.1]} 8. e5 {[%clk 0:02:58.9]}
8... Nfd7 {[%clk 0:02:29]} 9. exd6 {[%clk 0:02:17.5]} 9... f6 {[%clk 0:02:19.6]}
10. Bf4 {[%clk 0:02:08.2]} 10... Nc6 {[%clk 0:02:18.6]} 11. O-O {[%clk
0:02:04.2]} 11... e5 {[%clk 0:02:16.1]} 12. Bg3 {[%clk 0:02:00.1]} 12... Nb6
{[%clk 0:02:15.5]} 13. Bb3 {[%clk 0:01:57.3]} 13... Bg4 {[%clk 0:02:13.8]} 14.
Qd3 {[%clk 0:01:08.1]} 14... Qd7 {[%clk 0:02:02.3]} 15. c4 {[%clk 0:01:04.2]}
15... Bxf3 {[%clk 0:01:40.2]} 16. gxf3 {[%clk 0:01:00.4]} 16... Nd4 {[%clk
0:01:27.6]} 17. c5 {[%clk 0:00:51.7]} 17... Nc8 {[%clk 0:01:08.1]} 18. Nc3
{[%clk 0:00:50.5]} 18... b6 {[%clk 0:01:05.7]} 19. Nd5 {[%clk 0:00:45.5]} 19...
Nxb3 {[%clk 0:00:52.4]} 20. Qxb3 {[%clk 0:00:36.9]} 20... Rb8 {[%clk 0:00:46]}
21. Nc7+ {[%clk 0:00:32.5]} 21... Kf8 {[%clk 0:00:44.6]} 22. Ne6+ {[%clk
0:00:31.5]} 22... Kf7 {[%clk 0:00:44.4]} 23. Nd8+ {[%clk 0:00:19.9]} 23... Ke8
{[%clk 0:00:40.2]} 24. c6 {[%clk 0:00:13]} 24... Qxd6 {[%clk 0:00:35.9]} 25.
Qf7+ {[%clk 0:00:05.4]} 25... Kxd8 {[%clk 0:00:36.2]} 26. Rad1 {[%clk
0:00:03.5]} 26... Bh6 {[%clk 0:00:36.3]} 27. Rxd6+ {[%clk 0:00:01.2]} 27... Nxd6
{[%clk 0:00:37.2]} 0-1

[Event "Late-Titled-Tuesday-Blitz-March-19-2024"]
[Site "Chess.com"]
[Date "2024.03.19"]
[Round "5"]
[White "TheKnightOfBosnia"]
[Black "chucksterf10"]
[Result "1-0"]
[WhiteElo "2620"]
[BlackElo "2554"]
[TimeControl "180+1"]
[EndTime "14:54:33 PDT"]
[Termination "TheKnightOfBosnia won by resignation"]

1. e4 {[%clk 0:03:00.9]} 1... a6 {[%clk 0:02:59.1]} 2. Bc4 {[%clk 0:02:59.7]}
2... b5 {[%clk 0:02:58.6]} 3. Bxf7+ {[%clk 0:03:00]} 3... Kxf7 {[%clk
0:02:57.2]} 4. Qh5+ {[%clk 0:03:00.6]} 4... g6 {[%clk 0:02:48.8]} 5. Qd5+ {[%clk
0:03:00.5]} 5... e6 {[%clk 0:02:49.2]} 6. Qxa8 {[%clk 0:02:59.9]} 6... Nc6
{[%clk 0:02:49.3]} 7. Nf3 {[%clk 0:02:58.7]} 7... Bc5 {[%clk 0:02:42.5]} 8. c3
{[%clk 0:02:51.5]} 8... Nf6 {[%clk 0:02:10.4]} 9. d4 {[%clk 0:02:49.4]} 9... Bb6
{[%clk 0:02:08.4]} 10. e5 {[%clk 0:02:38.6]} 10... Nd5 {[%clk 0:02:05.9]} 11.
Bg5 {[%clk 0:02:37]} 11... Nce7 {[%clk 0:01:28.2]} 12. a4 {[%clk 0:02:30]} 12...
c6 {[%clk 0:01:25.5]} 13. axb5 {[%clk 0:02:25.7]} 13... cxb5 {[%clk 0:01:00.1]}
14. Nbd2 {[%clk 0:02:11.2]} 14... Rf8 {[%clk 0:00:52.9]} 15. Bh6 {[%clk
0:02:00.7]} 15... Rg8 {[%clk 0:00:45.5]} 16. Ng5+ {[%clk 0:01:55.8]} 16... Ke8
{[%clk 0:00:44.9]} 17. Nde4 {[%clk 0:01:55]} 17... Nf5 {[%clk 0:00:39.3]} 18.
Nd6+ {[%clk 0:01:20.7]} 18... Ke7 {[%clk 0:00:39.5]} 19. Ngf7 {[%clk 0:01:18.9]}
19... Qc7 {[%clk 0:00:22.6]} 20. Bg5+ {[%clk 0:01:12.8]} 20... Kf8 {[%clk
0:00:22.6]} 21. Nh6 {[%clk 0:01:04.2]} 21... Nxh6 {[%clk 0:00:14]} 22. Bxh6+
{[%clk 0:00:59.4]} 22... Ke7 {[%clk 0:00:14.1]} 23. Bg5+ {[%clk 0:00:59.4]}
23... Kf8 {[%clk 0:00:14.3]} 24. Qxc8+ {[%clk 0:00:59.5]} 24... Qxc8 {[%clk
0:00:14.5]} 25. Nxc8 {[%clk 0:01:00.4]} 25... Bc7 {[%clk 0:00:12.6]} 26. Rxa6
{[%clk 0:00:58.5]} 26... Kf7 {[%clk 0:00:12.8]} 27. Nd6+ {[%clk 0:00:58.4]}
27... Kg7 {[%clk 0:00:13.2]} 28. O-O {[%clk 0:00:51.6]} 28... h6 {[%clk
0:00:13.2]} 29. Bd2 {[%clk 0:00:51.4]} 29... Rf8 {[%clk 0:00:13.2]} 30. Ra7
{[%clk 0:00:50.9]} 30... g5 {[%clk 0:00:13.1]} 31. Nxb5 {[%clk 0:00:47.9]} 31...
Bb6 {[%clk 0:00:12.2]} 32. Rxd7+ {[%clk 0:00:47.8]} 32... Kg6 {[%clk 0:00:13]}
33. Nd6 {[%clk 0:00:47.3]} 33... g4 {[%clk 0:00:12.6]} 34. c4 {[%clk 0:00:45.7]}
34... Nc7 {[%clk 0:00:11.5]} 35. c5 {[%clk 0:00:44.7]} 35... Ba5 {[%clk
0:00:11.6]} 36. Bxa5 {[%clk 0:00:44.5]} 1-0

[Event "Late-Titled-Tuesday-Blitz-March-19-2024"]
[Site "Chess.com"]
[Date "2024.03.19"]
[Round "5"]
[White "Likvidator228"]
[Black "prochn"]
[Result "0-1"]
[WhiteElo "2561"]
[BlackElo "2477"]
[TimeControl "180+1"]
[EndTime "14:54:33 PDT"]
[Termination "prochn won by resignation"]

1. d4 {[%clk 0:03:00.9]} 1... d5 {[%clk 0:02:59.5]} 2. c4 {[%clk 0:03:00.7]}
2... c6 {[%clk 0:03:00]} 3. Nc3 {[%clk 0:03:00.7]} 3... Nf6 {[%clk 0:02:59.8]}
4. Nf3 {[%clk 0:02:59]} 4... dxc4 {[%clk 0:03:00.1]} 5. a4 {[%clk 0:02:58.8]}
5... Bf5 {[%clk 0:03:00.3]} 6. e3 {[%clk 0:02:59]} 6... e6 {[%clk 0:03:00.2]} 7.
Bxc4 {[%clk 0:02:59]} 7... Bb4 {[%clk 0:02:57.2]} 8. O-O {[%clk 0:02:58.8]} 8...
O-O {[%clk 0:02:56.3]} 9. Qe2 {[%clk 0:02:54.4]} 9... Bg6 {[%clk 0:02:56.3]} 10.
Bd3 {[%clk 0:02:33.9]} 10... Bh5 {[%clk 0:02:39.4]} 11. Bd2 {[%clk 0:02:21.8]}
11... Nbd7 {[%clk 0:02:38.8]} 12. e4 {[%clk 0:02:15.9]} 12... e5 {[%clk
0:02:36.9]} 13. d5 {[%clk 0:01:48.9]} 13... Nc5 {[%clk 0:02:36.6]} 14. Bg5
{[%clk 0:01:33.8]} 14... h6 {[%clk 0:02:31.2]} 15. Bxf6 {[%clk 0:01:13.8]} 15...
Qxf6 {[%clk 0:02:31]} 16. dxc6 {[%clk 0:01:14.3]} 16... bxc6 {[%clk 0:02:30.6]}
17. Bc4 {[%clk 0:01:14]} 17... Bxf3 {[%clk 0:02:27.9]} 18. Qxf3 {[%clk
0:01:12.6]} 18... Qxf3 {[%clk 0:02:26.1]} 19. gxf3 {[%clk 0:01:13.5]} 19... Rfd8
{[%clk 0:02:23.4]} 20. Rfd1 {[%clk 0:01:13.2]} 20... Rd4 {[%clk 0:02:20.5]} 21.
Rxd4 {[%clk 0:01:10.6]} 21... exd4 {[%clk 0:02:20.4]} 22. Ne2 {[%clk 0:01:10.3]}
22... Rd8 {[%clk 0:02:13.3]} 23. b3 {[%clk 0:00:55.7]} 23... d3 {[%clk
0:02:08.6]} 24. Rd1 {[%clk 0:00:54.7]} 24... Rd7 {[%clk 0:01:56.9]} 25. Nf4
{[%clk 0:00:49.7]} 25... d2 {[%clk 0:01:55.5]} 26. Kf1 {[%clk 0:00:44]} 26...
Nb7 {[%clk 0:01:33.8]} 27. Ke2 {[%clk 0:00:38.4]} 27... Na5 {[%clk 0:01:25.4]}
28. Nd3 {[%clk 0:00:36.9]} 28... Bc3 {[%clk 0:01:23.3]} 29. Nc5 {[%clk 0:00:26]}
29... Rd4 {[%clk 0:01:17.1]} 30. Bd3 {[%clk 0:00:15.3]} 30... Bb4 {[%clk
0:01:11.1]} 31. Na6 {[%clk 0:00:15.3]} 31... Bc3 {[%clk 0:00:53.1]} 32. b4
{[%clk 0:00:09.1]} 32... Nb3 {[%clk 0:00:49.7]} 33. b5 {[%clk 0:00:09.6]} 33...
Nc1+ {[%clk 0:00:46.4]} 0-1

[Event "Late-Titled-Tuesday-Blitz-March-19-2024"]
[Site "Chess.com"]
[Date "2024.03.19"]
[Round "5"]
[White "EcosseKillie"]
[Black "YEIKO2017"]
[Result "1-0"]
[WhiteElo "2324"]
[BlackElo "2480"]
[TimeControl "180+1"]
[EndTime "14:54:36 PDT"]
[Termination "EcosseKillie won by checkmate"]

1. d4 {[%clk 0:03:00.9]} 1... Nf6 {[%clk 0:02:51.4]} 2. Bg5 {[%clk 0:03:00.6]}
2... Ne4 {[%clk 0:02:50.5]} 3. Bf4 {[%clk 0:03:00.9]} 3... d5 {[%clk 0:02:50.9]}
4. e3 {[%clk 0:03:01.2]} 4... c5 {[%clk 0:02:51.2]} 5. Bd3 {[%clk 0:03:01.3]}
5... Nf6 {[%clk 0:02:50.2]} 6. c3 {[%clk 0:02:58.7]} 6... Nc6 {[%clk 0:02:50.5]}
7. Nd2 {[%clk 0:02:57.2]} 7... e6 {[%clk 0:02:49.8]} 8. Ngf3 {[%clk 0:02:57.2]}
8... Bd6 {[%clk 0:02:49.5]} 9. dxc5 {[%clk 0:02:47.1]} 9... Bxc5 {[%clk
0:02:47.6]} 10. O-O {[%clk 0:02:45.5]} 10... O-O {[%clk 0:02:44.9]} 11. h3
{[%clk 0:02:42.8]} 11... Bd6 {[%clk 0:02:41.9]} 12. Bxd6 {[%clk 0:02:37.6]}
12... Qxd6 {[%clk 0:02:42.8]} 13. e4 {[%clk 0:02:37.1]} 13... dxe4 {[%clk
0:01:45.8]} 14. Nxe4 {[%clk 0:02:38]} 14... Nxe4 {[%clk 0:01:45.4]} 15. Bxe4
{[%clk 0:02:38.9]} 15... Qf4 {[%clk 0:01:44.1]} 16. Bxc6 {[%clk 0:02:27.7]}
16... bxc6 {[%clk 0:01:42.1]} 17. Qd4 {[%clk 0:02:28.2]} 17... Qc7 {[%clk
0:01:35.6]} 18. Rfd1 {[%clk 0:02:25.2]} 18... c5 {[%clk 0:01:30.4]} 19. Qe5
{[%clk 0:02:24.6]} 19... Qxe5 {[%clk 0:01:27.1]} 20. Nxe5 {[%clk 0:02:25.5]}
20... Bb7 {[%clk 0:01:27.7]} 21. Rd7 {[%clk 0:02:23.2]} 21... Rab8 {[%clk
0:01:13.5]} 22. Rad1 {[%clk 0:02:10.8]} 22... f6 {[%clk 0:01:12.8]} 23. Nc4
{[%clk 0:01:44.4]} 23... Bd5 {[%clk 0:01:08.5]} 24. Ne3 {[%clk 0:01:44.3]} 24...
Rfd8 {[%clk 0:00:54.9]} 25. Rxa7 {[%clk 0:01:42.7]} 25... Be4 {[%clk 0:00:47.8]}
26. b3 {[%clk 0:01:28.5]} 26... Rxd1+ {[%clk 0:00:42.1]} 27. Nxd1 {[%clk
0:01:29.4]} 27... c4 {[%clk 0:00:40.9]} 28. b4 {[%clk 0:01:20.3]} 28... f5
{[%clk 0:00:39.3]} 29. Ne3 {[%clk 0:01:14.7]} 29... Rc8 {[%clk 0:00:39.4]} 30.
g3 {[%clk 0:01:08]} 30... g5 {[%clk 0:00:35.4]} 31. f4 {[%clk 0:01:07.2]} 31...
gxf4 {[%clk 0:00:35.3]} 32. gxf4 {[%clk 0:01:07]} 32... Kh8 {[%clk 0:00:35.5]}
33. Kf2 {[%clk 0:01:05.6]} 33... e5 {[%clk 0:00:31]} 34. fxe5 {[%clk 0:00:46.4]}
34... f4 {[%clk 0:00:30.5]} 35. Ng4 {[%clk 0:00:46.9]} 35... Rg8 {[%clk
0:00:28.9]} 36. Nf6 {[%clk 0:00:35]} 36... Rg2+ {[%clk 0:00:27.7]} 37. Kf1
{[%clk 0:00:35.6]} 37... Bf3 {[%clk 0:00:28.3]} 38. Rxh7# {[%clk 0:00:34.3]} 1-0

[Event "Late-Titled-Tuesday-Blitz-March-19-2024"]
[Site "Chess.com"]
[Date "2024.03.19"]
[Round "5"]
[White "DanielNaroditsky"]
[Black "platy3"]
[Result "1-0"]
[WhiteElo "3175"]
[BlackElo "2958"]
[TimeControl "180+1"]
[EndTime "14:54:42 PDT"]
[Termination "DanielNaroditsky won by resignation"]

1. e4 {[%clk 0:03:00.9]} 1... c5 {[%clk 0:02:59.4]} 2. c3 {[%clk 0:03:01.1]}
2... d5 {[%clk 0:02:56.8]} 3. exd5 {[%clk 0:03:02]} 3... Qxd5 {[%clk 0:02:56.8]}
4. d4 {[%clk 0:03:02.5]} 4... Nf6 {[%clk 0:02:57.4]} 5. Nf3 {[%clk 0:03:02.9]}
5... Nc6 {[%clk 0:02:58]} 6. dxc5 {[%clk 0:03:02.8]} 6... Qxd1+ {[%clk
0:02:56.9]} 7. Kxd1 {[%clk 0:03:03.7]} 7... Bf5 {[%clk 0:02:57.3]} 8. Be3 {[%clk
0:02:43.7]} 8... O-O-O+ {[%clk 0:02:55.4]} 9. Ke1 {[%clk 0:02:29]} 9... Nd5
{[%clk 0:02:54.9]} 10. Nbd2 {[%clk 0:02:11.2]} 10... e5 {[%clk 0:02:53.3]} 11.
Nb3 {[%clk 0:02:04.9]} 11... f6 {[%clk 0:02:50.6]} 12. Bb5 {[%clk 0:01:56.2]}
12... g5 {[%clk 0:02:45.8]} 13. Nfd2 {[%clk 0:01:47.1]} 13... Be7 {[%clk
0:02:35.4]} 14. Nc4 {[%clk 0:01:39]} 14... Be6 {[%clk 0:02:28.2]} 15. Rd1 {[%clk
0:01:32.9]} 15... h6 {[%clk 0:02:22.4]} 16. Nd6+ {[%clk 0:01:15.8]} 16... Kc7
{[%clk 0:02:22]} 17. Bc4 {[%clk 0:01:10.8]} 17... Bxd6 {[%clk 0:01:58.6]} 18.
Bxd5 {[%clk 0:01:11.1]} 18... Bxd5 {[%clk 0:01:57.5]} 19. Rxd5 {[%clk 0:01:11]}
19... Be7 {[%clk 0:01:58]} 20. Rxd8 {[%clk 0:01:10.6]} 20... Rxd8 {[%clk
0:01:56.6]} 21. g4 {[%clk 0:01:00.6]} 21... h5 {[%clk 0:01:46.1]} 22. h3 {[%clk
0:00:56.8]} 22... Rh8 {[%clk 0:01:45.5]} 23. Rg1 {[%clk 0:00:53.4]} 23... Nd8
{[%clk 0:01:45.2]} 24. Nd2 {[%clk 0:00:51.3]} 24... Ne6 {[%clk 0:01:40.3]} 25.
Ne4 {[%clk 0:00:51.9]} 25... Kc6 {[%clk 0:01:40.7]} 26. b4 {[%clk 0:00:49.7]}
26... hxg4 {[%clk 0:01:36]} 27. hxg4 {[%clk 0:00:49.8]} 27... Kd5 {[%clk
0:01:35.8]} 28. Nd2 {[%clk 0:00:45.7]} 28... a5 {[%clk 0:01:34.2]} 29. c4+
{[%clk 0:00:40.7]} 29... Kc6 {[%clk 0:01:34]} 30. b5+ {[%clk 0:00:41.6]} 30...
Kc7 {[%clk 0:01:30.7]} 31. Ne4 {[%clk 0:00:42.5]} 31... Rd8 {[%clk 0:01:26.4]}
32. Rh1 {[%clk 0:00:42.3]} 32... Rd3 {[%clk 0:01:17.9]} 33. Rh6 {[%clk
0:00:31.8]} 33... Nd4 {[%clk 0:01:15.2]} 34. Rh7 {[%clk 0:00:22.5]} 34... Kd8
{[%clk 0:01:12.9]} 35. c6 {[%clk 0:00:12.9]} 35... bxc6 {[%clk 0:00:59.7]} 36.
b6 {[%clk 0:00:13.5]} 36... Bb4+ {[%clk 0:00:59.7]} 37. Kf1 {[%clk 0:00:13.6]}
37... Kc8 {[%clk 0:01:00.4]} 38. Nxf6 {[%clk 0:00:10.2]} 38... Ne6 {[%clk
0:00:54]} 39. b7+ {[%clk 0:00:06.1]} 39... Kb8 {[%clk 0:00:54.1]} 40. Nd7+
{[%clk 0:00:06.5]} 1-0

[Event "Late-Titled-Tuesday-Blitz-March-19-2024"]
[Site "Chess.com"]
[Date "2024.03.19"]
[Round "5"]
[White "kleinebeer98"]
[Black "only_strong_moves"]
[Result "1-0"]
[WhiteElo "2871"]
[BlackElo "2655"]
[TimeControl "180+1"]
[EndTime "14:54:43 PDT"]
[Termination "kleinebeer98 won on time"]

1. e4 {[%clk 0:03:00.9]} 1... e5 {[%clk 0:03:00]} 2. Nc3 {[%clk 0:02:59.8]} 2...
Nf6 {[%clk 0:02:59.6]} 3. f4 {[%clk 0:03:00.3]} 3... d5 {[%clk 0:02:59.3]} 4.
fxe5 {[%clk 0:03:00.6]} 4... Nxe4 {[%clk 0:02:59.8]} 5. Nf3 {[%clk 0:03:01.4]}
5... Nxc3 {[%clk 0:02:59.3]} 6. bxc3 {[%clk 0:02:59.3]} 6... Be7 {[%clk
0:02:54.7]} 7. d4 {[%clk 0:02:58.6]} 7... Bf5 {[%clk 0:02:49.7]} 8. Bd3 {[%clk
0:02:54.2]} 8... Bxd3 {[%clk 0:02:49.9]} 9. Qxd3 {[%clk 0:02:55.1]} 9... Qd7
{[%clk 0:02:39]} 10. O-O {[%clk 0:02:50.2]} 10... Nc6 {[%clk 0:02:18.4]} 11. Rb1
{[%clk 0:02:41.6]} 11... Nd8 {[%clk 0:02:18]} 12. Bg5 {[%clk 0:02:36.6]} 12...
b6 {[%clk 0:02:11.4]} 13. Bxe7 {[%clk 0:02:27.4]} 13... Qxe7 {[%clk 0:02:12.3]}
14. c4 {[%clk 0:02:18.9]} 14... dxc4 {[%clk 0:01:58.3]} 15. Qxc4 {[%clk
0:02:19.8]} 15... O-O {[%clk 0:01:58.4]} 16. d5 {[%clk 0:02:08.9]} 16... Nb7
{[%clk 0:01:51.7]} 17. Rbd1 {[%clk 0:01:48.9]} 17... Rad8 {[%clk 0:01:50.8]} 18.
h4 {[%clk 0:01:39.1]} 18... h6 {[%clk 0:01:45]} 19. Kh2 {[%clk 0:01:33.9]} 19...
Nc5 {[%clk 0:01:37.1]} 20. Qf4 {[%clk 0:01:30.3]} 20... a5 {[%clk 0:01:10.6]}
21. c4 {[%clk 0:01:30.1]} 21... f6 {[%clk 0:00:58.3]} 22. e6 {[%clk 0:01:29.1]}
22... c6 {[%clk 0:00:44.6]} 23. Rfe1 {[%clk 0:01:28.8]} 23... cxd5 {[%clk
0:00:38.4]} 24. cxd5 {[%clk 0:01:29.7]} 24... Qd6 {[%clk 0:00:14.9]} 25. Kg3
{[%clk 0:01:24.6]} 25... g5 {[%clk 0:00:14.2]} 26. Qxd6 {[%clk 0:01:22.7]} 26...
Rxd6 {[%clk 0:00:13.2]} 27. Kg4 {[%clk 0:01:17.8]} 27... Rfd8 {[%clk 0:00:05.1]}
28. Kf5 {[%clk 0:01:04.3]} 28... Kg7 {[%clk 0:00:05]} 29. e7 {[%clk 0:01:04.9]}
29... Re8 {[%clk 0:00:05]} 30. h5 {[%clk 0:00:51.3]} 30... Kf7 {[%clk
0:00:05.2]} 31. Rd4 {[%clk 0:00:40.7]} 31... a4 {[%clk 0:00:05.3]} 32. a3 {[%clk
0:00:40.6]} 32... b5 {[%clk 0:00:05.3]} 33. Re3 {[%clk 0:00:39.8]} 33... Nd7
{[%clk 0:00:05.7]} 34. Re6 {[%clk 0:00:38]} 34... Nb6 {[%clk 0:00:01.1]} 35.
Rxd6 {[%clk 0:00:38.2]} 1-0